[Event "Late-Titled-Tuesday-Blitz-June-18-2024"]
[Site "Chess.com"]
[Date "2024.06.18"]
[Round "6"]
[White "Chempiblinka"]
[Black "CrimeFightingSpider07"]
[Result "1-0"]
[WhiteElo "2387"]
[BlackElo "2504"]
[TimeControl "180+1"]
[EndTime "15:10:57 PDT"]
[Termination "Chempiblinka won by resignation"]

1. Nf3 {[%clk 0:03:00.9]} 1... Nf6 {[%clk 0:02:57.5]} 2. g3 {[%clk 0:03:00.7]}
2... g6 {[%clk 0:02:55.6]} 3. Bg2 {[%clk 0:03:00.2]} 3... Bg7 {[%clk 0:02:56.2]}
4. O-O {[%clk 0:02:59.3]} 4... O-O {[%clk 0:02:56.8]} 5. c4 {[%clk 0:02:59]}
5... c5 {[%clk 0:02:54.7]} 6. Nc3 {[%clk 0:02:57.4]} 6... Nc6 {[%clk 0:02:55.2]}
7. d4 {[%clk 0:02:55.7]} 7... cxd4 {[%clk 0:02:54.3]} 8. Nxd4 {[%clk 0:02:55]}
8... Nxd4 {[%clk 0:02:52.1]} 9. Qxd4 {[%clk 0:02:55.4]} 9... d6 {[%clk
0:02:52.7]} 10. Qd3 {[%clk 0:02:53.9]} 10... Be6 {[%clk 0:02:51.6]} 11. b3
{[%clk 0:02:52.7]} 11... Qc7 {[%clk 0:02:50.7]} 12. Bb2 {[%clk 0:02:52.4]} 12...
Rfd8 {[%clk 0:02:50.8]} 13. Rac1 {[%clk 0:02:44.7]} 13... a6 {[%clk 0:02:47.5]}
14. e4 {[%clk 0:02:42.5]} 14... Rac8 {[%clk 0:02:47.1]} 15. Qe2 {[%clk
0:02:42.2]} 15... Nd7 {[%clk 0:02:44.4]} 16. Nd5 {[%clk 0:02:39.7]} 16... Bxd5
{[%clk 0:02:44.1]} 17. exd5 {[%clk 0:02:40.6]} 17... Bxb2 {[%clk 0:02:40.6]} 18.
Qxb2 {[%clk 0:02:41.5]} 18... Nf6 {[%clk 0:02:40.3]} 19. Rfe1 {[%clk 0:02:36]}
19... Re8 {[%clk 0:02:40]} 20. Bh3 {[%clk 0:02:29.5]} 20... Rcd8 {[%clk
0:02:38.5]} 21. Rcd1 {[%clk 0:02:23.4]} 21... a5 {[%clk 0:02:37.1]} 22. Re3
{[%clk 0:02:19.5]} 22... Nd7 {[%clk 0:02:33.8]} 23. Rde1 {[%clk 0:02:18.9]}
23... Nc5 {[%clk 0:02:34]} 24. Qd4 {[%clk 0:02:08.7]} 24... Ra8 {[%clk 0:02:19]}
25. a4 {[%clk 0:01:59.9]} 25... b6 {[%clk 0:02:17.7]} 26. f4 {[%clk 0:01:58.3]}
26... Ra7 {[%clk 0:02:00.3]} 27. f5 {[%clk 0:01:57.7]} 27... Rf8 {[%clk
0:01:24.4]} 28. Qh4 {[%clk 0:01:56.8]} 28... f6 {[%clk 0:01:05.6]} 29. fxg6
{[%clk 0:01:47.8]} 29... hxg6 {[%clk 0:01:05.5]} 30. Qh6 {[%clk 0:01:45]} 30...
Kf7 {[%clk 0:01:05.5]} 31. Qh7+ {[%clk 0:01:41.6]} 31... Ke8 {[%clk 0:01:05.3]}
32. Qxg6+ {[%clk 0:01:41.4]} 32... Kd8 {[%clk 0:01:05.6]} 33. Qg7 {[%clk
0:01:34.5]} 33... Re8 {[%clk 0:01:04.9]} 34. Bg4 {[%clk 0:01:13.5]} 34... e5
{[%clk 0:01:02.7]} 35. Qxf6+ {[%clk 0:01:10.5]} 35... Qe7 {[%clk 0:01:03.2]} 36.
Rf1 {[%clk 0:00:56.1]} 36... e4 {[%clk 0:00:56.6]} 37. h4 {[%clk 0:00:47.5]}
37... Rg8 {[%clk 0:00:55.3]} 38. Qf5 {[%clk 0:00:45.2]} 38... Kc7 {[%clk
0:00:43.6]} 39. h5 {[%clk 0:00:34.3]} 39... Raa8 {[%clk 0:00:37.9]} 40. h6
{[%clk 0:00:32.9]} 40... Raf8 {[%clk 0:00:25.5]} 41. Qh5 {[%clk 0:00:27.3]}
41... Rxf1+ {[%clk 0:00:22.3]} 42. Kxf1 {[%clk 0:00:28.2]} 42... Qf6+ {[%clk
0:00:22.3]} 43. Kg2 {[%clk 0:00:25.1]} 43... Rh8 {[%clk 0:00:14.7]} 44. h7
{[%clk 0:00:24.4]} 44... Qd4 {[%clk 0:00:14.7]} 45. Re2 {[%clk 0:00:19.6]} 45...
e3 {[%clk 0:00:14.6]} 46. Qf7+ {[%clk 0:00:19.2]} 46... Kb8 {[%clk 0:00:14.7]}
47. Qf5 {[%clk 0:00:18.2]} 47... Ne4 {[%clk 0:00:05]} 48. Bf3 {[%clk 0:00:15.2]}
48... Nc3 {[%clk 0:00:04.8]} 49. Qe6 {[%clk 0:00:07.9]} 49... Qe5 {[%clk
0:00:02.3]} 50. Qxe5 {[%clk 0:00:07.8]} 50... dxe5 {[%clk 0:00:03.2]} 51. Rxe3
{[%clk 0:00:08.4]} 51... e4 {[%clk 0:00:02]} 52. Bxe4 {[%clk 0:00:08.1]} 52...
Nxe4 {[%clk 0:00:02.9]} 53. Rxe4 {[%clk 0:00:08.2]} 53... Rxh7 {[%clk
0:00:03.8]} 54. Kf3 {[%clk 0:00:08.1]} 54... Kc7 {[%clk 0:00:04.5]} 55. g4
{[%clk 0:00:07.7]} 55... Kd6 {[%clk 0:00:05.4]} 56. g5 {[%clk 0:00:05]} 56...
Rh3+ {[%clk 0:00:05.8]} 57. Kg4 {[%clk 0:00:04.8]} 57... Rxb3 {[%clk 0:00:06.7]}
58. g6 {[%clk 0:00:05]} 58... Rb1 {[%clk 0:00:07.6]} 59. Kf5 {[%clk 0:00:05.2]}
59... Rf1+ {[%clk 0:00:03.1]} 60. Rf4 {[%clk 0:00:05.2]} 60... Rg1 {[%clk
0:00:03.7]} 61. Kf6 {[%clk 0:00:05.6]} 61... Kd7 {[%clk 0:00:02]} 62. g7 {[%clk
0:00:06.1]} 62... Ke8 {[%clk 0:00:02.6]} 63. Re4+ {[%clk 0:00:05.8]} 63... Kd8
{[%clk 0:00:03.2]} 64. Kf7 {[%clk 0:00:04.9]} 64... Rf1+ {[%clk 0:00:03.2]} 65.
Kg6 {[%clk 0:00:03.8]} 65... Kd7 {[%clk 0:00:04.1]} 66. g8=Q {[%clk 0:00:02.9]}
66... Rg1+ {[%clk 0:00:04.1]} 67. Kh7 {[%clk 0:00:03.8]} 67... Rh1+ {[%clk
0:00:04.1]} 68. Kg7 {[%clk 0:00:03.8]} 68... Rg1+ {[%clk 0:00:05]} 69. Kf8
{[%clk 0:00:04.2]} 69... Rf1+ {[%clk 0:00:05.2]} 70. Qf7+ {[%clk 0:00:05.1]}
70... Rxf7+ {[%clk 0:00:05.7]} 71. Kxf7 {[%clk 0:00:06]} 71... Kd6 {[%clk
0:00:06.6]} 72. Kf6 {[%clk 0:00:06.6]} 72... Kc5 {[%clk 0:00:07.5]} 73. Rh4
{[%clk 0:00:07.3]} 73... Kd6 {[%clk 0:00:07.8]} 74. Rh5 {[%clk 0:00:07.4]} 74...
Kc5 {[%clk 0:00:08.7]} 75. Rh6 {[%clk 0:00:08.3]} 75... Kd6 {[%clk 0:00:08.5]}
76. Kf5+ {[%clk 0:00:08.4]} 76... Kc5 {[%clk 0:00:09.4]} 77. Ke4 {[%clk
0:00:08.7]} 77... Kb4 {[%clk 0:00:10.3]} 78. Rxb6+ {[%clk 0:00:08.9]} 78... Kxa4
{[%clk 0:00:11.2]} 79. d6 {[%clk 0:00:09.6]} 79... Ka3 {[%clk 0:00:12]} 80. d7
{[%clk 0:00:10.5]} 80... a4 {[%clk 0:00:12.8]} 81. d8=Q {[%clk 0:00:10.8]} 81...
Ka2 {[%clk 0:00:13.7]} 82. Qd2+ {[%clk 0:00:10.9]} 1-0

[Event "Late-Titled-Tuesday-Blitz-June-18-2024"]
[Site "Chess.com"]
[Date "2024.06.18"]
[Round "6"]
[White "Jospem"]
[Black "mishanick"]
[Result "0-1"]
[WhiteElo "3059"]
[BlackElo "3152"]
[TimeControl "180+1"]
[EndTime "15:11:17 PDT"]
[Termination "mishanick won by resignation"]

1. e4 {[%clk 0:03:00.9]} 1... c5 {[%clk 0:02:56.3]} 2. Nf3 {[%clk 0:03:00.8]}
2... d6 {[%clk 0:02:56.5]} 3. c3 {[%clk 0:03:00.1]} 3... Nf6 {[%clk 0:02:56.4]}
4. h3 {[%clk 0:03:00.7]} 4... Nc6 {[%clk 0:02:55.4]} 5. Bd3 {[%clk 0:03:00.9]}
5... g6 {[%clk 0:02:51.6]} 6. Bc2 {[%clk 0:03:00.8]} 6... Bg7 {[%clk 0:02:49.9]}
7. O-O {[%clk 0:03:01.1]} 7... e5 {[%clk 0:02:49]} 8. d3 {[%clk 0:02:58.7]} 8...
O-O {[%clk 0:02:48.7]} 9. Bg5 {[%clk 0:02:58.4]} 9... h6 {[%clk 0:02:48.6]} 10.
Bxf6 {[%clk 0:02:58.7]} 10... Bxf6 {[%clk 0:02:48.1]} 11. Bb3 {[%clk 0:02:59]}
11... Kh7 {[%clk 0:02:47.5]} 12. Nbd2 {[%clk 0:02:59.1]} 12... Bg7 {[%clk
0:02:48]} 13. a4 {[%clk 0:02:59.4]} 13... f5 {[%clk 0:02:48.1]} 14. Bc4 {[%clk
0:02:56.3]} 14... f4 {[%clk 0:02:48]} 15. Rb1 {[%clk 0:02:55.8]} 15... g5 {[%clk
0:02:36.6]} 16. b4 {[%clk 0:02:42.7]} 16... h5 {[%clk 0:02:31.5]} 17. b5 {[%clk
0:02:36.1]} 17... Na5 {[%clk 0:02:27.8]} 18. Nh2 {[%clk 0:02:36]} 18... Kg6
{[%clk 0:02:14.2]} 19. Bd5 {[%clk 0:02:36]} 19... Rh8 {[%clk 0:02:13.2]} 20. g4
{[%clk 0:02:09.2]} 20... hxg4 {[%clk 0:01:52.7]} 21. hxg4 {[%clk 0:02:08.5]}
21... Rh3 {[%clk 0:01:48.5]} 22. Kg2 {[%clk 0:01:51.9]} 22... Qh8 {[%clk
0:01:35.9]} 23. Rh1 {[%clk 0:01:16.4]} 23... Bd7 {[%clk 0:01:30.5]} 24. Ndf3
{[%clk 0:01:03.9]} 24... Qh6 {[%clk 0:01:23.9]} 25. Nxg5 {[%clk 0:00:36.8]}
25... Rxh2+ {[%clk 0:00:50.4]} 26. Rxh2 {[%clk 0:00:35.8]} 26... Qxg5 {[%clk
0:00:50.9]} 27. f3 {[%clk 0:00:32.8]} 27... Rh8 {[%clk 0:00:43.1]} 28. Rxh8
{[%clk 0:00:31.1]} 28... Bxh8 {[%clk 0:00:43.4]} 29. Qe2 {[%clk 0:00:23.7]}
29... Qh4 {[%clk 0:00:30.9]} 30. Qf2 {[%clk 0:00:18]} 30... Qxf2+ {[%clk
0:00:30.9]} 31. Kxf2 {[%clk 0:00:18.9]} 31... Bf6 {[%clk 0:00:30.5]} 32. Rh1
{[%clk 0:00:16]} 32... Kg7 {[%clk 0:00:30.7]} 33. Ke2 {[%clk 0:00:15.8]} 33...
Be8 {[%clk 0:00:30]} 34. Kd2 {[%clk 0:00:12.9]} 34... Bd8 {[%clk 0:00:29.6]} 35.
Kc2 {[%clk 0:00:12.5]} 35... a6 {[%clk 0:00:26.7]} 36. Rb1 {[%clk 0:00:10.4]}
36... axb5 {[%clk 0:00:20.2]} 37. axb5 {[%clk 0:00:11.3]} 37... b6 {[%clk
0:00:20.2]} 38. c4 {[%clk 0:00:11.3]} 38... Bh4 {[%clk 0:00:18.8]} 39. Ra1
{[%clk 0:00:10.6]} 39... Bd8 {[%clk 0:00:16.4]} 40. Rh1 {[%clk 0:00:10.7]} 40...
Bg6 {[%clk 0:00:16.7]} 41. Ra1 {[%clk 0:00:09]} 41... Bc7 {[%clk 0:00:16.8]} 42.
Be6 {[%clk 0:00:08.8]} 42... Bd8 {[%clk 0:00:16.4]} 43. Bf5 {[%clk 0:00:08.9]}
43... Bf7 {[%clk 0:00:15.8]} 44. Rh1 {[%clk 0:00:06.7]} 44... Bg8 {[%clk
0:00:16.2]} 45. Ra1 {[%clk 0:00:06.5]} 45... Bc7 {[%clk 0:00:16.1]} 46. g5
{[%clk 0:00:06.2]} 46... Bd8 {[%clk 0:00:16.5]} 47. g6 {[%clk 0:00:06.8]} 47...
Be7 {[%clk 0:00:16]} 48. Kc3 {[%clk 0:00:05.1]} 48... Bd8 {[%clk 0:00:15.9]} 49.
Ra4 {[%clk 0:00:05.4]} 49... Bc7 {[%clk 0:00:16]} 50. Kc2 {[%clk 0:00:04.9]}
50... Kf6 {[%clk 0:00:16.1]} 51. Kc3 {[%clk 0:00:05.2]} 51... Be6 {[%clk
0:00:06.3]} 52. Ra1 {[%clk 0:00:03.8]} 52... Bg8 {[%clk 0:00:05.9]} 53. Rh1
{[%clk 0:00:04.1]} 53... Kg7 {[%clk 0:00:06.3]} 54. Rg1 {[%clk 0:00:04.5]} 54...
Bd8 {[%clk 0:00:06.8]} 55. Ra1 {[%clk 0:00:04.8]} 55... Bc7 {[%clk 0:00:07.2]}
56. Rg1 {[%clk 0:00:05]} 56... Bd8 {[%clk 0:00:06.8]} 57. Bd7 {[%clk 0:00:04.4]}
57... Bh4 {[%clk 0:00:06.5]} 58. Ra1 {[%clk 0:00:02.7]} 58... Bf2 {[%clk
0:00:06.7]} 59. Rxa5 {[%clk 0:00:02.3]} 59... Be1+ {[%clk 0:00:07.1]} 60. Kc2
{[%clk 0:00:02]} 60... Bxa5 {[%clk 0:00:08]} 61. Bf5 {[%clk 0:00:02.6]} 61...
Kf6 {[%clk 0:00:08.5]} 62. Kd1 {[%clk 0:00:02.5]} 62... Be6 {[%clk 0:00:08.3]}
63. Ke2 {[%clk 0:00:02.4]} 63... Bc3 {[%clk 0:00:07.9]} 64. Kf1 {[%clk
0:00:02.6]} 64... Bd4 {[%clk 0:00:07.3]} 65. Kg2 {[%clk 0:00:02.9]} 65... Bxf5
{[%clk 0:00:03.1]} 66. exf5 {[%clk 0:00:03.2]} 66... e4 {[%clk 0:00:03.7]} 67.
dxe4 {[%clk 0:00:02.4]} 67... Kg5 {[%clk 0:00:03.8]} 68. Kh3 {[%clk 0:00:02.6]}
68... Bg7 {[%clk 0:00:04.1]} 69. Kh2 {[%clk 0:00:02.8]} 69... Kh4 {[%clk
0:00:04]} 70. Kg2 {[%clk 0:00:03.4]} 70... Kg5 {[%clk 0:00:03.4]} 71. Kh2 {[%clk
0:00:03.9]} 71... Kh5 {[%clk 0:00:03.5]} 72. Kg2 {[%clk 0:00:04]} 72... Bf6
{[%clk 0:00:03.9]} 73. Kh2 {[%clk 0:00:04.1]} 73... Kh4 {[%clk 0:00:04.1]} 74.
Kg2 {[%clk 0:00:04.4]} 74... Bd4 {[%clk 0:00:03.8]} 75. Kh2 {[%clk 0:00:04.8]}
75... Kg5 {[%clk 0:00:04]} 76. Kh3 {[%clk 0:00:05.1]} 76... Kh5 {[%clk
0:00:04.2]} 77. Kg2 {[%clk 0:00:05]} 77... Kh6 {[%clk 0:00:04.2]} 78. Kh3 {[%clk
0:00:05.3]} 78... Kg5 {[%clk 0:00:04.5]} 79. Kg2 {[%clk 0:00:05.6]} 79... Be5
{[%clk 0:00:02.1]} 80. Kh3 {[%clk 0:00:06.1]} 80... Kh5 {[%clk 0:00:02.2]} 81.
Kg2 {[%clk 0:00:06.5]} 81... Kh6 {[%clk 0:00:02.1]} 82. Kh3 {[%clk 0:00:06.9]}
82... Kg5 {[%clk 0:00:02.6]} 83. Kg2 {[%clk 0:00:07.4]} 83... Kf6 {[%clk
0:00:02.9]} 84. Kh3 {[%clk 0:00:08]} 84... d5 {[%clk 0:00:03.6]} 85. g7 {[%clk
0:00:01.5]} 85... Kxg7 {[%clk 0:00:02.9]} 86. exd5 {[%clk 0:00:02.4]} 86... Kf6
{[%clk 0:00:03.1]} 87. Kg4 {[%clk 0:00:03.3]} 87... Bd6 {[%clk 0:00:03.6]} 88.
Kh5 {[%clk 0:00:03.5]} 88... Kxf5 {[%clk 0:00:04.2]} 89. Kh6 {[%clk 0:00:04.4]}
89... Kf6 {[%clk 0:00:03]} 90. Kh7 {[%clk 0:00:04.7]} 90... Ke5 {[%clk
0:00:03.7]} 91. Kg6 {[%clk 0:00:05.3]} 91... Kd4 {[%clk 0:00:04.3]} 92. Kf5
{[%clk 0:00:06]} 92... Kxc4 {[%clk 0:00:04.8]} 93. Ke6 {[%clk 0:00:06.2]} 93...
Bb8 {[%clk 0:00:05.5]} 0-1

[Event "Late-Titled-Tuesday-Blitz-June-18-2024"]
[Site "Chess.com"]
[Date "2024.06.18"]
[Round "6"]
[White "traviscottofficial"]
[Black "BerlinDrawer"]
[Result "0-1"]
[WhiteElo "2751"]
[BlackElo "2589"]
[TimeControl "180+1"]
[EndTime "15:11:24 PDT"]
[Termination "BerlinDrawer won by resignation"]

1. b3 {[%clk 0:02:59.4]} 1... Nf6 {[%clk 0:02:59.9]} 2. Bb2 {[%clk 0:02:59.5]}
2... c5 {[%clk 0:03:00.3]} 3. g3 {[%clk 0:03:00]} 3... Nc6 {[%clk 0:02:59.8]} 4.
Bg2 {[%clk 0:03:00.5]} 4... d5 {[%clk 0:03:00]} 5. Nf3 {[%clk 0:03:00.6]} 5...
g6 {[%clk 0:02:59.3]} 6. O-O {[%clk 0:03:00.3]} 6... Bg7 {[%clk 0:02:59.2]} 7.
d4 {[%clk 0:03:01.2]} 7... Ne4 {[%clk 0:02:38]} 8. Nbd2 {[%clk 0:03:00.2]} 8...
cxd4 {[%clk 0:02:32.3]} 9. Nxe4 {[%clk 0:02:32.1]} 9... dxe4 {[%clk 0:02:33.2]}
10. Nd2 {[%clk 0:02:32.4]} 10... f5 {[%clk 0:02:30]} 11. f3 {[%clk 0:02:29.7]}
11... e3 {[%clk 0:02:27]} 12. Nc4 {[%clk 0:02:28.3]} 12... O-O {[%clk
0:02:25.2]} 13. f4 {[%clk 0:02:27.1]} 13... Be6 {[%clk 0:02:12.2]} 14. Na3
{[%clk 0:02:24.3]} 14... Bd5 {[%clk 0:02:10.9]} 15. c4 {[%clk 0:02:19.8]} 15...
Bxg2 {[%clk 0:02:00.9]} 16. Kxg2 {[%clk 0:02:20.7]} 16... Qd7 {[%clk 0:01:53.7]}
17. Nc2 {[%clk 0:02:15.8]} 17... Rad8 {[%clk 0:01:53]} 18. Qd3 {[%clk 0:02:09]}
18... e5 {[%clk 0:01:46.6]} 19. fxe5 {[%clk 0:02:08.9]} 19... Nxe5 {[%clk
0:01:43.7]} 20. Qxd4 {[%clk 0:02:08.4]} 20... Qc6+ {[%clk 0:01:42.3]} 21. Kg1
{[%clk 0:02:05.1]} 21... Rxd4 {[%clk 0:01:42]} 22. Nxd4 {[%clk 0:02:06]} 22...
Qc8 {[%clk 0:01:40.8]} 23. Nb5 {[%clk 0:02:02.5]} 23... a6 {[%clk 0:01:37.2]}
24. Nc3 {[%clk 0:01:50.7]} 24... Nc6 {[%clk 0:01:33.2]} 25. Rad1 {[%clk
0:01:49.9]} 25... Rd8 {[%clk 0:01:32.4]} 26. Ba1 {[%clk 0:01:45.8]} 26... Rxd1
{[%clk 0:01:10.2]} 27. Rxd1 {[%clk 0:01:44.7]} 27... Bxc3 {[%clk 0:01:09.4]} 28.
Bxc3 {[%clk 0:01:44.5]} 28... Kf7 {[%clk 0:01:08.1]} 29. Rd6 {[%clk 0:01:37.7]}
29... Ke7 {[%clk 0:00:58.1]} 30. Rd3 {[%clk 0:01:37]} 30... Qe6 {[%clk
0:00:53.8]} 31. Bb2 {[%clk 0:01:19.5]} 31... g5 {[%clk 0:00:52.9]} 32. Rd5
{[%clk 0:01:16.9]} 32... h6 {[%clk 0:00:49.9]} 33. Ba3+ {[%clk 0:01:10.3]} 33...
Ke8 {[%clk 0:00:34.1]} 34. Bc5 {[%clk 0:01:07.8]} 34... f4 {[%clk 0:00:22.3]}
35. Bd6 {[%clk 0:00:55.6]} 35... Qe4 {[%clk 0:00:20.6]} 36. gxf4 {[%clk
0:00:50.4]} 36... gxf4 {[%clk 0:00:21.5]} 37. Rd1 {[%clk 0:00:26.2]} 37... f3
{[%clk 0:00:20.8]} 38. exf3 {[%clk 0:00:23.8]} 38... Qxf3 {[%clk 0:00:21.7]} 39.
Rf1 {[%clk 0:00:24.1]} 39... Qg4+ {[%clk 0:00:21.3]} 40. Bg3 {[%clk 0:00:24.7]}
40... Nd4 {[%clk 0:00:20.7]} 41. Kg2 {[%clk 0:00:16.9]} 41... Qe2+ {[%clk
0:00:19.8]} 42. Bf2 {[%clk 0:00:14.9]} 42... exf2 {[%clk 0:00:17]} 43. Rxf2
{[%clk 0:00:14.6]} 43... Qe4+ {[%clk 0:00:17.4]} 44. Kg3 {[%clk 0:00:13.5]}
44... Nf5+ {[%clk 0:00:16.5]} 45. Kh3 {[%clk 0:00:14.2]} 45... Qe3+ {[%clk
0:00:15.7]} 46. Kg2 {[%clk 0:00:14.9]} 46... Nh4+ {[%clk 0:00:15.7]} 47. Kf1
{[%clk 0:00:14.3]} 47... Qd3+ {[%clk 0:00:15.2]} 48. Re2+ {[%clk 0:00:14.1]}
48... Kd7 {[%clk 0:00:15.4]} 49. Kf2 {[%clk 0:00:14.7]} 49... Qf3+ {[%clk
0:00:15.2]} 50. Ke1 {[%clk 0:00:15.1]} 50... Qf4 {[%clk 0:00:14.8]} 51. Rd2+
{[%clk 0:00:14.9]} 51... Kc6 {[%clk 0:00:14.3]} 52. Rf2 {[%clk 0:00:15.5]} 52...
Qe3+ {[%clk 0:00:13.9]} 53. Re2 {[%clk 0:00:15.1]} 53... Qc3+ {[%clk 0:00:14.2]}
54. Kf2 {[%clk 0:00:15]} 54... Nf5 {[%clk 0:00:14.2]} 55. Re6+ {[%clk
0:00:14.7]} 55... Kd7 {[%clk 0:00:14.2]} 56. Re2 {[%clk 0:00:15.6]} 56... Qd4+
{[%clk 0:00:13.9]} 57. Kf3 {[%clk 0:00:15.4]} 57... Qh4 {[%clk 0:00:13.7]} 58.
Kg2 {[%clk 0:00:14.4]} 58... Qg4+ {[%clk 0:00:13.2]} 59. Kf2 {[%clk 0:00:15]}
59... h5 {[%clk 0:00:13.5]} 60. Rd2+ {[%clk 0:00:14.9]} 60... Kc6 {[%clk
0:00:13.8]} 61. Re2 {[%clk 0:00:15.8]} 61... Qf4+ {[%clk 0:00:13.8]} 62. Kg2
{[%clk 0:00:15.9]} 62... h4 {[%clk 0:00:14.3]} 63. Rf2 {[%clk 0:00:15]} 63...
Qg4+ {[%clk 0:00:14.4]} 64. Kf1 {[%clk 0:00:14.4]} 64... h3 {[%clk 0:00:14.8]}
65. Ke1 {[%clk 0:00:14]} 65... Ne3 {[%clk 0:00:14.8]} 66. Kd2 {[%clk 0:00:14]}
66... Nf5 {[%clk 0:00:14.1]} 67. Kd3 {[%clk 0:00:13.6]} 67... Nh4 {[%clk
0:00:14.5]} 68. Ke3 {[%clk 0:00:13.5]} 68... Ng2+ {[%clk 0:00:14.7]} 69. Kd2
{[%clk 0:00:13.3]} 69... Qg5+ {[%clk 0:00:14.8]} 70. Ke2 {[%clk 0:00:14]} 70...
Qe5+ {[%clk 0:00:14.3]} 71. Kf3 {[%clk 0:00:14.9]} 71... Qxh2 {[%clk 0:00:14.7]}
72. Kg4 {[%clk 0:00:14.4]} 72... Qh1 {[%clk 0:00:12.3]} 73. Kg3 {[%clk
0:00:14.6]} 73... Ne1 {[%clk 0:00:11.3]} 74. Rh2 {[%clk 0:00:14.2]} 74... Qg1+
{[%clk 0:00:10.5]} 75. Kxh3 {[%clk 0:00:14.7]} 75... Nf3 {[%clk 0:00:09.9]} 76.
Rg2 {[%clk 0:00:15.2]} 76... Qe3 {[%clk 0:00:10.4]} 77. Kg4 {[%clk 0:00:15.4]}
77... Ne5+ {[%clk 0:00:10.4]} 78. Kh4 {[%clk 0:00:15.2]} 78... Qf4+ {[%clk
0:00:10.1]} 79. Kh3 {[%clk 0:00:15.2]} 79... Qf5+ {[%clk 0:00:09.8]} 80. Kg3
{[%clk 0:00:15.2]} 80... Qf6 {[%clk 0:00:08.9]} 81. Rf2 {[%clk 0:00:15.1]} 81...
Qg6+ {[%clk 0:00:09.2]} 82. Kh3 {[%clk 0:00:15.5]} 82... Kc5 {[%clk 0:00:09.5]}
83. Rg2 {[%clk 0:00:15.1]} 83... Qh5+ {[%clk 0:00:09.2]} 84. Kg3 {[%clk
0:00:15.5]} 84... Kd4 {[%clk 0:00:09.5]} 85. Rf2 {[%clk 0:00:13.1]} 85... Qg4+
{[%clk 0:00:08.9]} 86. Kh2 {[%clk 0:00:13.5]} 86... Nf3+ {[%clk 0:00:08.6]} 87.
Rxf3 {[%clk 0:00:13]} 87... Qxf3 {[%clk 0:00:09]} 88. c5 {[%clk 0:00:12.8]}
88... Qg4 {[%clk 0:00:09.3]} 89. c6 {[%clk 0:00:12.6]} 89... bxc6 {[%clk
0:00:09.9]} 90. b4 {[%clk 0:00:12.6]} 90... Ke3 {[%clk 0:00:10.2]} 91. b5 {[%clk
0:00:13.5]} 91... Kf2 {[%clk 0:00:10.8]} 0-1